{"text_format":"1","workbook":"xlsx","n_sheets":9,"sheets":["pooblasceni_zast","izjava o ne eVročanju","zastopani_proizvajalci","razredi_podrazredi","up_taksa","izjavi","razredi","drugi_sifranti","prevent_share"],"not_rendered":{"charts":0,"images":1,"macros":1,"external_links":2,"defined_names":47,"comments":0,"pivot_tables":0},"unopened":[],"bounds":{"document_bytes":16777216,"sheet_cells":100000,"rows_first":2000,"rows_last":500,"rows_between":2000,"halvings":0,"cell_chars":16384,"cell_head_chars":4096},"cells_cut":0,"cells_raw":0,"read":"whole","date_system":"1900"}

{"sheet":"pooblasceni_zast","index":0,"n_rows":47,"n_cols":14,"rows_kept":47,"cut":false,"hidden":false,"merged":[[39,1,39,13],[40,1,40,13],[41,1,41,13],[42,1,42,13],[34,1,34,3],[35,1,35,3],[37,1,37,3],[36,1,36,3],[35,4,35,13],[36,4,36,13],[37,4,37,13],[34,9,34,13],[34,4,34,8],[18,10,18,13],[0,1,8,13],[15,2,15,3],[15,4,15,13],[17,2,17,3],[17,4,17,13],[9,1,9,13],[10,1,10,13],[11,1,11,13],[13,1,13,3],[13,4,13,13],[12,1,12,13],[14,1,14,3],[26,4,26,13],[22,4,22,13],[25,4,25,13],[21,1,21,3],[22,1,22,3],[25,2,25,3],[24,4,24,13],[33,1,33,13],[14,4,14,13],[16,2,16,3],[16,4,16,13],[31,10,31,13],[27,4,27,13],[27,2,27,3],[30,4,30,13],[19,4,19,13],[23,4,23,13],[20,1,20,3],[20,4,20,13],[28,4,28,13],[29,4,29,13],[21,4,21,13],[26,2,26,3]]}
[]
[]
[]
[]
[]
[]
[]
[]
[]
[null,"VLOGA ZA VPIS / SPREMEMBO VPISA V EVIDENCO POOBLAŠČENIH ZASTOPNIKOV PROIZVAJALCEV ELEKTRIČNE IN ELEKTRONSKE OPREME"]
[null,"na podlagi 44. člena Uredbe o odpadni električni in elektronski opremi (Uradni list RS, št. 55/15, 47/16, 72/18, 84/18 - ZIURKOE, 108/20 in 44/22 - ZVO-2)"]
[null,"1. Podatki o pooblaščenem zastopniku proizvajalca električne in elektronske opreme "]
[null,"Opomba:  (1) - uradno ime  pravne osebe ali samostojnega podjetnika posameznika se navede kot je navedeno v poslovnem registru"]
[null," NAZIV oz. IME POOBLAŠČENEGA ZASTOPNIKA: (1)"]
[null,"Pravni naslov pooblaščenega zastopnika:"]
[null,null,"ulica:"]
[null,null,"hišna številka:"]
[null,null,"kraj oz. pošta:"]
[null,null,"poštna številka:",null," "," "," "," "]
[null,"Spletni naslov (če obstaja):"]
[null,"Matična številka:"]
[null,"Davčna številka:"]
[null,"Kontaktna oseba pooblaščenega zastopnika:"]
[null,null,"ime:"]
[null,null,"priimek:"]
[null,null,"službena telefonska številka:"]
[null,null,"službeni elektronski naslov:"]
[null,null,"službeni naslov kontaktne osebe:"]
[null,null,null,"ulica:"]
[null,null,null,"hišna številka:"]
[null,null,null,"kraj oz. pošta:"]
[null,null,null,"poštna številka:"," "," "," "," "]
[]
[null,"Elektronsko vročanje"]
[null,"Želim elektronsko vročanje (1) ",null,null,"DA(2) ",null,null,null,null,"NE(3) "]
[null,"Naslov elektronskega predala:"]
[null,"Naslov navadnega elektronskega predala:"]
[null,"Mobilna številka (4) "]
[]
[null,"[1] Na podlagi drugega odstavka 86. člena ZUP se lahko  dokumenti vročajo v elektronski obliki. V kolikor elektronski naslov, naveden v prejšnji tabeli, ni enak naslovu za elektronsko vročanje, je treba navesti elektronski naslov za elektronsko vročanje. V primeru, da elektronskega naslova za elektronsko vročanje ne navedete, vam bodo dokumenti vročeni elektronsko na elektronski naslov, iz katerega je bila posredovana vloga. V kolikor imate varen elektronski predla, se navede elektronski naslov varnega e-predala."]
[null,"[2] V kolikor želite elektronsko vročanje, izpolnite ustrezno rubriko. "]
[null,"[3] V kolikor ne želite elektronskega vročanja, predložite izrecno izjavo, da želite vročanje po fizični poti."]
[null,"[4] Mobilna številka se bo uporabila izključno samo za namen elektronskega vročanja."]
[]
[]
[null," "]
[null,"2025-06-09",null,null,null,null,null,null,null,null,null,null," ","35461-"]

{"sheet":"izjava o ne eVročanju","index":1,"n_rows":11,"n_cols":9,"rows_kept":11,"cut":false,"hidden":false,"merged":[[7,5,7,6],[0,0,0,14],[2,0,2,14],[9,1,9,3],[10,1,10,3],[7,8,7,13],[6,8,6,13]]}
["I Z J A V A"]
[]
["Stranka _____________________________, ki jo zastopa ________________________, na podlagi četrtega odstavka 86. člena Zakona o splošnem upravnem postopku (Uradni list RS, št. 24/06 – uradno prečiščeno besedilo, 105/06 – ZUS-1, 126/07, 65/08, 8/10, 82/13, 175/20 – ZIUOPDVE in 3/22 – ZDeb) podaja izjavo, da v zadevi, za katero vlaga predmetno vlogo, želi fizično vročitev vseh dokumentov."]
[]
[]
[]
[]
[null,null,null,null,null,"žig",null,null,"(Ime in priimek zakonitega zastopnika, njegov podpis)"]
[]
["Kraj:"]
["Datum:"]

{"sheet":"zastopani_proizvajalci","index":2,"n_rows":29,"n_cols":11,"rows_kept":29,"cut":false,"hidden":false,"merged":[[2,1,2,7],[1,1,1,9]]}
[]
[null,"2. Podatki vseh zastopanih proizvajalcev"]
[]
[null,"Zap.št. zastopanega proizvajalca","Naziv oz. ime zastopanega proizvajalca","Telefonska številka zastopanega proizvajalca","Elektronski naslov zastopanega proizvajalca","Službeni naslov zastopanega proizvajalca","Država zastopanega proizvajalca","Spletni naslov zastopanega proizvajalca, če obstaja","Vrsta načrta ravnanja z OEEO (individualni ali skupni)","Naziv nosilca skupnega načrta, če je bil izbran skupni načrt"]
[null,null,null,null,null,null,null,null,null,null,{"$f":"IF(ISNA(VLOOKUP(J5,Sifrant_shem,2,FALSE)),\"\",VLOOKUP(J5,Sifrant_shem,2,FALSE))","v":""}]
[null,null,null,null,null,null,null,null,null,null,""]
[null,null,null,null,null,null,null,null,null,null,""]
[null,null,null,null,null,null,null,null,null,null,""]
[null,null,null,null,null,null,null,null,null,null,""]
[null,null,null,null,null,null,null,null,null,null,""]
[null,null,null,null,null,null,null,null,null,null,""]
[null,null,null,null,null,null,null,null,null,null,""]
[null,null,null,null,null,null,null,null,null,null,""]
[null,null,null,null,null,null,null,null,null,null,""]
[null,null,null,null,null,null,null,null,null,null,""]
[null,null,null,null,null,null,null,null,null,null,""]
[null,null,null,null,null,null,null,null,null,null,""]
[null,null,null,null,null,null,null,null,null,null,""]
[null,null,null,null,null,null,null,null,null,null,""]
[null,null,null,null,null,null,null,null,null,null,""]
[null,null,null,null,null,null,null,null,null,null,""]
[null,null,null,null,null,null,null,null,null,null,""]
[null,null,null,null,null,null,null,null,null,null,""]
[null,null,null,null,null,null,null,null,null,null,""]
[null,null,null,null,null,null,null,null,null,null,""]
[null,null,null,null,null,null,null,null,null,null,""]
[]
[]
["Št. vrstic:"]

{"sheet":"razredi_podrazredi","index":3,"n_rows":33,"n_cols":6,"rows_kept":33,"cut":false,"hidden":false,"merged":[[2,1,2,3],[1,1,1,3]]}
[]
[null,"3. Podatki razredov in podrazredov EEO - izpolni pooblaščeni zastopnik proizvajalca/proizvajalcev EEO"]
[]
[null,"Zap.št. zastopanega proizvajalca","Razred/podrazred EEO, ki ga zastopani proizvajalec daje na trg","Vrsta EEO (izberi iz seznama)"]
[null,null,null,null,{"$f":"IF(ISNA(VLOOKUP(C5,Sifrant_razredi,2,FALSE)),\"\",VLOOKUP(C5,Sifrant_razredi,2,FALSE))","v":""},{"$f":"IF(ISNA(VLOOKUP(D5,sifrant_vrsta_EEO,2,FALSE)),\"\",VLOOKUP(D5,sifrant_vrsta_EEO,2,FALSE))","v":""}]
[null,null,null,null,"",""]
[null,null,null,null,"",""]
[null,null,null,null,"",""]
[null,null,null,null,"",""]
[null,null,null,null,"",""]
[null,null,null,null,"",""]
[null,null,null,null,"",""]
[null,null,null,null,"",""]
[null,null,null,null,"",""]
[null,null,null,null,"",""]
[null,null,null,null,"",""]
[null,null,null,null,"",""]
[null,null,null,null,"",""]
[null,null,null,null,"",""]
[null,null,null,null,"",""]
[null,null,null,null,"",""]
[null,null,null,null,"",""]
[null,null,null,null,"",""]
[null,null,null,null,"",""]
[null,null,null,null,"",""]
[null,null,null,null,"",""]
[null,null,null,null,"",""]
[null,null,null,null,"",""]
[null,null,null,null,"",""]
[null,null,null,null,"",""]
[]
[]
["Št. vrstic:"]

{"sheet":"up_taksa","index":4,"n_rows":8,"n_cols":18,"rows_kept":8,"cut":false,"hidden":false,"merged":[[1,1,1,13],[3,1,3,13],[5,1,5,13],[7,1,7,13]]}
[]
[null,"4. Upravna taksa",null,null,null,null,null,null,null,null,null,null,null,null,null,null,"V kolikor se upravna taksa plača na podračun Ministrstvo za okolje, podnebje in energijo, se znesek upravne takse - državne (namen plačila) nakaže na račun št. 0110-0100-0315-637, referenca 11 25704-7111002-35461","."]
[null,null,null,null,null,null,null,null,null,null,null,null,null,null,null,null,{"$f":"MID(YEAR(TODAY()),2,4)","v":"025"},"."]
[null,"Za vlogo je potrebno v skladu s tar.št. 1 in št. 4 taksne tarife Zakona o upravnih taksah (Uradni list RS, št. 106/10-UPB, 14/15-ZUUJFO, 84/15-ZZelP-J, 32/16, 30/18-ZKZaš in 189/20-ZFRO) plačati upravno takso v višini 9,00 EUR. Upravno takso se plača v gotovini ali z drugim veljavnim plačilnim instrumentom in o plačilu predloži ustrezno potrdilo."]
[]
[null,{"$f":"Q2&Q3&\".\"","v":"V kolikor se upravna taksa plača na podračun Ministrstvo za okolje, podnebje in energijo, se znesek upravne takse - državne (namen plačila) nakaže na račun št. 0110-0100-0315-637, referenca 11 25704-7111002-35461025."}]
[]
[null,"TAKSE NE PLAČUJEJO:\n  - država in državni organi,\n  - občine in njihovi organi,\n  - javni skladi, javne agencije ter druge osebe javnega prava itd.\nDruge osebe javnega prava so npr. javna podjetja za opravljanje komunalnih dejavnosti v občinah, javni zavodi (npr. osnovne in srednje šole, bolnišnice, NLZOH), itd."]

{"sheet":"izjavi","index":5,"n_rows":20,"n_cols":10,"rows_kept":20,"cut":false,"hidden":false,"merged":[[1,1,1,12],[14,9,14,12],[19,2,19,5],[19,7,19,8],[9,1,9,4],[11,1,11,4],[12,9,12,12],[3,1,3,12],[5,1,5,12]]}
[]
[null,"5. Izjava (št. 1) pooblaščenega zastopnika o resničnosti in točnosti informacij, navedenih v tej vlogi in izjava (št. 2) o imenovanju pooblaščenega zastopnika s strani proizvajalcev z njihovim pisnim pooblastilom"]
[]
[null,"1. Kot pooblaščeni zastopnik proizvajalcev EEO izjavljam, da so v vlogi navedene informacije resnične in točne ter da je točno opisana vrsta električne in elektronske opreme, ki jo je dal na slovenski trg  zastopani proizvajalec oz. proizvajalci, ki ga oz. jih zastopam."]
[]
[null,"2. Kot pooblaščeni zastopnik proizvajalcev EEO izjavljam, da sem bil kot pooblaščeni zastopnik imenovan s pisnim pooblastilom s strani zastopan(ega/ih) proizvajalc(a/ev) v skladu s členom 17(3) Direktive 2012/19/EU o odpadni električni in elektronski opremi."]
[]
[]
[]
[null,"vlogo pripravil-a:"]
[]
[]
[null,null,null,null,null,null,null,null,null,"ime in priimek ter podpis pooblaščenega zastopnika proizvajalca EEO"]
[]
[]
[]
[]
[]
[]
[null,"V/Na",null,null,null,null," , dne"]

{"sheet":"razredi","index":6,"n_rows":7,"n_cols":2,"rows_kept":7,"cut":false,"hidden":true,"merged":[]}
["Razred","ID razreda"]
["1 Oprema za topolotno izmenjavo",32]
["2 Zasloni, monitorji in oprema z zasloni, katerh površina je večja od 100 cm2",33]
["3 Sijalke",34]
["4 Velika oprema (katerakoli zunanja dimenzija večja od 50 cm)",35]
["5 Majhna oprema (nobena zunanja dimenzija ni večja od 50 cm)",36]
["6 Majhna oprema za IT in telekomunikacije (nobena zunanja dimenzija ni večja od 50 cm)",37]

{"sheet":"drugi_sifranti","index":7,"n_rows":40,"n_cols":2,"rows_kept":40,"cut":false,"hidden":true,"merged":[]}
["Vrsta EEO","Oznaka"]
["gospodinjska","g"]
["negospodinjska","ng"]
["gospodinjska in negospodinjska","g in ng"]
[]
["Države, članice EU"]
["Avstrija"]
["Belgija"]
["Bolgarija"]
["Ciper"]
["Češka"]
["Danska"]
["Estonija"]
["Finska"]
["Francija"]
["Grčija"]
["Hrvaška"]
["Irska"]
["Italija"]
["Latvija"]
["Litva"]
["Luksemburg"]
["Madžarska"]
["Malta"]
["Nemčija"]
["Nizozemska"]
["Poljska"]
["Portugalska"]
["Romunija"]
["Slovaška"]
["Slovenija"]
["Španija"]
["Švedska"]
[]
["Skupne sheme skladnosti","ID"]
["INTERSEROH zbiranje in predelava odpadnih surovin d.o.o., LETALIŠKA CESTA 3C, 1000 LJUBLJANA",33947]
["RECIKEL, družba za ravnanje z odpadno embalažo, d.o.o., VEVŠKA CESTA 52, 1260 LJUBLJANA - POLJE",67888]
["SLOPAK, družba za ravnanje z odpadno embalažo d.o.o., VODOVODNA CESTA 100, 1000 LJUBLJANA",33399]
["TRIGANA, razvojni inženiring, d.o.o., TRŽAŠKA CESTA 207, 1000 LJUBLJANA",71888]
["ZEOS, ravnanje z električno in elektronsko opremo, d.o.o., ŠLANDROVA ULICA 4, 1231 LJUBLJANA - ČRNUČE",43964]

{"sheet":"prevent_share","index":8,"n_rows":2,"n_cols":3,"rows_kept":2,"cut":false,"hidden":true,"merged":[]}
["a","b","c"]
[1,2,3]